bitfinex/quotes_SOLUSD_20250420
["timestamp","ask_amount","ask_price","bid_price","bid_amount"]
[1745118904046,14.6737941,141.09,141.04,14.64618682]
[1745118904447,14.6737941,141.09,141.04,7.55601218]
[1745118906041,14.6737941,141.09,141.04,14.6460893]
[1745118907648,14.6737941,141.09,141.04,7.55601218]
[1745118908570,7.11778192,141.09,141.05,7.55601218]
[1745118908754,7.11778192,141.09,141.04,14.64592435]
[1745118913155,0.03,141.09,141.04,14.64592435]
[1745118913363,0.03,141.09,141.05,7.55601218]
[1745118914870,0.03,141.09,141.07,7.55601218]
[1745118915673,0.03,141.09,141.07,14.64466828]
[1745118915870,0.03,141.09,141.06,14.64506493]
[1745118916052,0.03,141.09,141.05,14.64553927]
[1745118923072,0.03,141.09,141.05,7.08952709]
[1745118923269,0.03,141.09,141.05,14.64553927]
[1745118923973,0.03,141.09,141.05,7.08952709]
[1745118924175,0.03,141.09,141.05,14.64553927]
[1745118942888,7.58601218,141.09,141.04,7.55601218]
[1745118943191,7.55601218,141.08,141.02,33.55601218]
[1745118943372,7.55601218,141.07,141.02,33.55601218]
[1745118943765,7.55601218,141.07,141.02,7.55601218]
[1745118944086,14.64448764,141.08,141.03,7.55601218]
[1745118946993,14.64448764,141.08,141.03,14.64664321]
[1745118949595,7.55601218,141.07,141.01,108.9042]
[1745118949779,7.55601218,141.05,141.01,0.063]
[1745118950793,7.55601218,141.04,141.01,0.063]
[1745118952192,7.55601218,141.05,141.01,0.063]
[1745118955701,14.64614698,141.05,141.01,0.063]
[1745118955898,7.08867937,141.07,141.01,0.063]
[1745118956082,14.64469155,141.07,141.02,7.55601218]
[1745118957487,13.78,141.08,141.04,7.55601218]
[1745118957878,14.67401552,141.09,141.04,7.55601218]
[1745118962205,14.64423169,141.08,141.03,14.64643819]
[1745118964409,14.64423169,141.08,141.03,7.55601218]
[1745118964913,7.55601218,141.06,141.01,16.31456043]
[1745118965307,7.55601218,141.07,141.02,7.55601218]
[1745118967117,14.64492991,141.07,141.02,7.55601218]
[1745118968522,7.55601218,141.06,141.01,16.31456043]
[1745118968726,7.55601218,141.05,141.01,0.063]
[1745118969703,7.55601218,141.04,141.01,0.063]
[1745118971336,14.64613459,141.05,141.01,0.063]
[1745118973137,18.64964886,141.08,141.01,0.063]
[1745118973443,7.55601218,141.05,141.01,0.063]
[1745118974637,14.6457455,141.05,141.01,0.063]
[1745118978069,7.55601218,141.03,141.01,0.063]
[1745118978246,7.55601218,141.02,141.01,0.063]
[1745118979270,14.64720491,141.02,141.01,0.063]
[1745118982267,33.29685377,141.02,141.01,0.063]
[1745118982455,41.27555377,141.02,141.01,0.063]
[1745118995174,44.64964886,141.0,140.99,0.063]
[1745118995375,52.20566104,141.0,140.99,0.063]
[1745118996174,59.29785962,141.0,140.99,0.063]
[1745119000877,40.64821076,141.0,140.99,0.063]
[1745119005479,33.09219858,141.0,140.99,0.063]
[1745119005877,40.64821076,141.0,140.99,0.063]
[1745119006381,59.29785962,141.0,140.99,0.063]
[1745119007167,18.64964886,140.99,140.98,0.063]
[1745119007368,26.20566104,140.99,140.98,0.063]
[1745119008163,33.29836265,140.99,140.98,0.063]
[1745119016289,7.55601218,140.98,140.97,0.063]
[1745119016492,21.33601218,140.98,140.97,0.063]
[1745119018189,28.42921688,140.98,140.97,0.063]
[1745119020003,26.0,140.96,140.95,0.063]
[1745119020297,33.55601218,140.96,140.95,0.063]
[1745119020493,89.95601218,140.97,140.95,0.063]
[1745119021007,46.8732047,140.98,140.95,0.063]
[1745119024302,54.42921688,140.98,140.95,0.063]
[1745119027397,7.55601218,140.96,140.95,0.063]
[1745119027989,52.20566104,140.96,140.95,0.063]
[1745119029700,59.29987216,140.96,140.95,1e-08]
[1745119037816,89.52392088,140.96,140.95,1e-08]
[1745119038409,18.64964886,140.95,140.94,1e-08]
[1745119038616,52.20566104,140.95,140.93,1e-08]
[1745119038930,26.20566104,140.94,140.93,1e-08]
[1745119040709,33.30087886,140.94,140.93,1e-08]
[1745119044503,115.70087886,140.94,140.93,1e-08]
[1745119046601,136.97087886,140.94,140.93,1e-08]
[1745119046920,115.70087886,140.94,140.93,1e-08]
[1745119047220,44.64964886,140.91,140.9,0.063]
[1745119047423,66.00566104,140.91,140.9,0.063]
[1745119048720,73.10238944,140.91,140.9,0.063]
[1745119049512,82.4,140.9,140.88,0.063]
[1745119049713,44.64964886,140.88,140.86,0.063]
[1745119050103,52.20566104,140.88,140.86,0.063]
[1745119050714,59.30390067,140.88,140.86,0.063]
[1745119050916,7.55601218,140.87,140.86,0.063]
[1745119051319,77.74661403,141.04,140.91,8.0905]
[1745119051510,7.55601218,140.96,140.91,8.0905]
[1745119051936,7.55601218,140.95,140.91,8.0905]
[1745119052429,7.55601218,140.94,140.91,8.0905]
[1745119058508,7.55601218,140.94,140.91,1.6055]
[1745119059724,7.55601218,140.93,140.91,1.6055]
[1745119059923,7.55601218,140.93,140.88,21.00059829]
[1745119060931,7.55601218,140.94,140.89,7.55601218]
[1745119062327,40.6508531,140.95,140.89,14.65343255]
[1745119063119,7.55601218,140.94,140.89,14.65343255]
[1745119063320,7.09535775,140.94,140.89,14.65343255]
[1745119063515,14.65136993,140.94,140.89,7.55601218]
[1745119064333,7.09535775,140.94,140.89,14.65364074]
[1745119064910,7.09535775,140.94,140.9,7.55601218]
[1745119065330,7.09535775,140.94,140.89,14.65364074]
[1745119065531,14.65136993,140.94,140.89,14.65364074]
[1745119066129,14.65136993,140.94,140.89,7.09762856]
[1745119066435,14.65136993,140.94,140.89,7.55601218]
[1745119067935,14.65136993,140.94,140.89,14.65366385]
[1745119068428,7.09535775,140.94,140.9,7.55601218]
[1745119070938,7.09535775,140.94,140.89,7.09765167]
[1745119071140,7.09535775,140.94,140.9,7.55601218]
[1745119071438,7.09535775,140.94,140.89,7.09765167]
[1745119071737,7.09535775,140.94,140.9,7.55601218]
[1745119082542,7.09535775,140.94,140.89,7.55601218]
[1745119082748,14.65136993,140.94,140.89,7.55601218]
[1745119083645,14.65136993,140.94,140.87,8.75819508]
[1745119083832,14.65136993,140.94,140.89,7.55601218]
[1745119087228,7.55601218,140.93,140.88,7.55601218]
[1745119088052,14.65136993,140.94,140.89,7.55601218]
[1745119092757,7.0962248,140.92,140.88,7.55601218]
[1745119093353,7.0962248,140.92,140.87,9.21561218]
[1745119093538,7.55601218,140.91,140.86,7.61901218]
[1745119094942,7.0970075,140.91,140.87,7.55601218]
[1745119096162,14.65301968,140.91,140.86,7.61901218]
[1745119098262,7.0970075,140.91,140.87,7.55601218]
[1745119100150,14.65301968,140.91,140.86,7.61901218]
[1745119100746,7.55601218,140.9,140.86,7.61901218]
[1745119100963,7.55601218,140.89,140.86,0.063]
[1745119101872,14.65421845,140.89,140.86,0.063]
[1745119102164,7.55601218,140.88,140.86,0.063]
[1745119102470,41.20860627,140.89,140.86,0.063]
[1745119102471,7.55601218,140.87,140.86,0.063]
[1745119103354,7.09820627,140.89,140.86,7.61901218]
[1745119103748,14.65421845,140.89,140.86,0.063]
[1745119107366,7.09820627,140.89,140.86,0.063]
[1745119107973,14.65421845,140.89,140.86,0.063]
[1745119108175,7.55601218,140.88,140.86,0.063]
[1745119108975,14.6545623,140.88,140.86,0.063]
[1745119109171,7.55601218,140.87,140.86,0.063]
[1745119110052,14.6547557,140.87,140.86,0.063]
[1745119126913,7.09874352,140.87,140.86,0.063]
[1745119131513,59.30440456,140.87,140.86,0.063]
[1745119133431,40.6547557,140.87,140.86,0.063]
[1745119133740,33.09874352,140.87,140.86,0.063]
[1745119138545,40.6547557,140.87,140.86,0.063]
[1745119138916,59.30440456,140.87,140.85,0.063]
[1745119139222,7.55601218,140.86,140.84,0.063]
[1745119139428,7.55601218,140.85,140.84,0.063]
[1745119139636,7.55601218,140.85,140.81,0.063]
[1745119139825,7.55601218,140.84,140.81,0.063]
[1745119140329,7.10126402,140.82,140.81,0.063]
[1745119146756,14.6572762,140.82,140.81,0.063]
[1745119160069,18.64964886,140.81,140.8,0.844344]
[1745119160254,26.20566104,140.81,140.8,0.844344]
[1745119160558,26.0,140.79,140.78,2.3207351]
[1745119160745,47.55601218,140.79,140.78,2.3207351]
[1745119162275,54.65878936,140.79,140.78,2.3207351]
[1745119164260,73.30843822,140.79,140.78,2.3207351]
[1745119165358,54.65878936,140.79,140.78,2.3207351]
[1745119168268,73.30843822,140.79,140.78,2.3207351]
[1745119171293,47.10277718,140.79,140.78,2.3207351]
[1745119171594,54.65878936,140.79,140.78,2.3207351]
[1745119171793,47.10277718,140.79,140.78,2.3207351]
[1745119171992,54.65878936,140.79,140.78,2.3207351]
[1745119173799,73.30843822,140.79,140.78,2.3207351]
[1745119175096,54.65878936,140.79,140.78,2.3207351]
[1745119181296,47.10277718,140.79,140.78,2.3207351]
[1745119181491,54.65878936,140.79,140.78,2.3207351]
[1745119185099,47.10277718,140.79,140.78,2.3207351]
[1745119187805,21.10277718,140.79,140.78,2.3207351]
[1745119189283,82.4,140.8,140.78,2.3207351]
[1745119189499,7.10194634,140.81,140.78,9.87674728]
[1745119191107,7.10139409,140.82,140.79,7.55601218]
[1745119191699,21.00093267,140.83,140.79,7.55601218]
[1745119195200,28.55694485,140.83,140.79,7.55601218]
[1745119196810,7.55601218,140.82,140.78,2.3207351]
[1745119197202,7.55601218,140.81,140.78,2.3207351]
[1745119197497,7.55601218,140.82,140.78,2.3207351]
[1745119198007,7.10227272,140.8,140.78,2.3207351]
[1745119202784,14.65730493,140.82,140.78,2.3207351]
[1745119202982,7.10129275,140.82,140.78,9.87674728]
[1745119204308,21.00086196,140.83,140.79,7.55601218]
[1745119205907,21.00086196,140.83,140.78,9.87674728]
[1745119206203,7.55601218,140.82,140.78,2.3207351]
[1745119206411,7.10176834,140.81,140.78,2.3207351]
[1745119207708,7.55601218,140.8,140.78,2.3207351]
[1745119208598,7.55601218,140.81,140.78,2.3207351]
[1745119208800,14.6572762,140.82,140.78,2.3207351]
[1745119209912,7.10126402,140.82,140.78,2.3207351]
[1745119210086,7.10126402,140.82,140.79,7.55601218]
[1745119211315,7.10126402,140.82,140.78,9.87674728]
[1745119212294,14.6572762,140.82,140.78,2.3207351]
[1745119212696,7.55601218,140.81,140.78,2.3207351]
[1745119212913,7.55601218,140.8,140.78,2.3207351]
[1745119213102,7.55601218,140.79,140.78,2.3207351]
[1745119214418,14.65878936,140.79,140.78,2.3207351]
[1745119219913,33.30843822,140.79,140.78,2.3207351]
[1745119226024,54.57843822,140.79,140.78,1e-08]
[1745119226228,65.91964886,140.76,140.75,0.063]
[1745119226525,87.31566104,140.76,140.75,0.063]
[1745119227309,7.55601218,140.73,140.72,0.063]
[1745119228216,14.66181762,140.73,140.72,0.063]
[1745119231329,7.10580544,140.73,140.72,0.063]
[1745119232814,82.4,140.75,140.72,0.063]
[1745119233216,82.4,140.75,140.72,7.61901218]
[1745119233421,82.4,140.75,140.72,0.063]
[1745119233729,89.50499272,140.75,140.72,0.063]
[1745119235413,7.10580544,140.73,140.72,0.063]
[1745119235613,33.10580544,140.73,140.72,0.063]
[1745119241435,7.10580544,140.73,140.72,0.063]
[1745119242938,7.55601218,140.75,140.72,0.063]
[1745119242939,7.10530055,140.74,140.72,0.063]
[1745119247036,7.55601218,140.73,140.72,0.063]
[1745119247746,167.91370976,140.73,140.72,1e-08]
[1745119247938,167.91370976,140.73,140.71,1e-08]
[1745119248245,63.7800609,140.72,140.71,1e-08]
[1745119248445,33.55601218,140.72,140.71,1e-08]
[1745119249251,40.66232258,140.72,140.71,1e-08]
[1745119249445,14.66232258,140.72,140.71,1e-08]
[1745119251251,40.66232258,140.72,140.71,1e-08]
[1745119270064,59.31197144,140.72,140.71,1e-08]
[1745119278376,80.58197144,140.72,140.71,1e-08]
[1745119278575,59.31197144,140.72,140.71,1e-08]
[1745119288483,33.31197144,140.72,140.71,1e-08]
[1745119289786,25.75595926,140.72,140.71,1e-08]
[1745119289965,33.31197144,140.72,140.71,1e-08]
[1745119295079,92.88452016,140.72,140.71,1e-08]
[1745119297185,96.50261417,140.72,140.71,1e-08]
[1745119297703,62.66047144,140.72,140.71,1e-08]
[1745119298508,92.88452016,140.72,140.71,1e-08]
[1745119299462,62.66047144,140.72,140.71,1e-08]
[1745119300483,96.42429288,140.72,140.71,1e-08]
[1745119301001,66.20024416,140.72,140.71,1e-08]
[1745119302976,96.42429288,140.72,140.71,1e-08]
[1745119306388,102.03182373,140.72,140.71,1e-08]
[1745119307992,96.42429288,140.72,140.71,1e-08]
[1745119312887,58.12174416,140.72,140.71,1e-08]
[1745119313397,88.34579288,140.72,140.71,1e-08]
[1745119314299,58.12174416,140.72,140.71,1e-08]
[1745119324893,39.91964886,140.68,140.66,0.063]
[1745119325095,28.54484846,140.67,140.66,0.063]
[1745119327000,47.19449732,140.67,140.66,0.063]
[1745119327203,47.19449732,140.67,140.61,4.8113]
[1745119327386,7.55601218,140.66,140.61,4.8113]
[1745119329306,7.10984713,140.65,140.61,4.8113]
[1745119330404,7.10984713,140.65,140.61,6.382]
[1745119332211,7.10984713,140.65,140.61,13.93801218]
[1745119335210,7.10934167,140.66,140.61,13.93801218]
[1745119335387,13.88,140.67,140.64,7.55601218]
[1745119336114,13.88,140.67,140.63,7.55601218]
[1745119337409,13.88,140.67,140.63,14.66680886]
[1745119337609,13.88,140.67,140.65,7.55601218]
[1745119337801,7.10742571,140.7,140.66,7.55601218]
[1745119340519,20.98690181,140.71,140.68,7.55601218]
[1745119342012,13.88,140.71,140.69,7.55601218]
[1745119342417,26.0,140.72,140.69,7.55601218]
[1745119343417,7.10546669,140.74,140.69,7.55601218]
[1745119343602,33.10546669,140.74,140.69,7.55601218]
[1745119344001,33.10546669,140.74,140.7,7.55601218]
[1745119344622,33.10546669,140.74,140.69,7.55601218]
[1745119347513,40.66147887,140.74,140.69,7.55601218]
[1745119348028,33.10546669,140.74,140.69,7.55601218]
[1745119349536,7.55601218,140.73,140.68,7.55601218]
[1745119350326,7.55601218,140.71,140.66,14.08551218]
[1745119351230,7.10732054,140.7,140.66,14.08551218]
[1745119351529,7.10732054,140.7,140.66,7.55601218]
[1745119353329,25.32185743,140.72,140.66,7.55601218]
[1745119354428,32.42816783,140.72,140.66,7.55601218]
[1745119357137,32.42816783,140.72,140.67,7.55601218]
[1745119361539,17.76584525,140.72,140.67,7.55601218]
[1745119361844,7.10580544,140.73,140.68,7.55601218]
[1745119364835,14.66181762,140.73,140.68,7.55601218]
[1745119369853,7.10580544,140.73,140.68,7.55601218]
[1745119370448,14.66181762,140.73,140.68,7.55601218]
[1745119370621,7.10580544,140.73,140.7,7.55601218]
[1745119371823,7.10530055,140.74,140.7,7.55601218]
[1745119372650,7.10530055,140.74,140.69,7.55601218]
[1745119372828,14.66131273,140.74,140.69,7.55601218]
[1745119373857,14.66131273,140.74,140.68,7.55601218]
[1745119374027,7.55601218,140.72,140.66,7.55601218]
[1745119374346,7.55601218,140.72,140.65,1.5847]
[1745119374548,7.55601218,140.7,140.65,1.5847]
[1745119374744,7.55601218,140.7,140.65,9.14071218]
[1745119375331,21.39601218,140.71,140.65,9.14071218]
[1745119375538,47.39601218,140.71,140.65,9.14071218]
[1745119377562,7.10732054,140.7,140.66,7.55601218]
[1745119377737,39.84,140.71,140.67,7.55601218]
[1745119377937,13.84,140.71,140.68,7.55601218]
[1745119378231,7.10596502,140.73,140.69,7.55601218]
[1745119378433,7.10596502,140.73,140.68,7.55601218]
[1745119378659,7.55601218,140.73,140.68,7.55601218]
[1745119378960,46.91320675,140.74,140.69,7.55601218]
[1745119379171,46.91320675,140.74,140.68,7.55601218]
[1745119379454,26.0,140.74,140.7,7.55601218]
[1745119381356,26.0,140.74,140.7,14.66316937]
[1745119381837,46.94493473,140.75,140.7,7.55601218]
[1745119382354,54.50094691,140.75,140.7,7.55601218]
[1745119383652,46.94493473,140.75,140.69,14.66363402]
[1745119383843,7.55601218,140.74,140.69,14.66363402]
[1745119384049,46.94493473,140.75,140.69,14.66363402]
[1745119384365,7.55601218,140.74,140.69,14.66363402]
[1745119385160,14.66135172,140.74,140.69,14.66363402]
[1745119389162,7.10533954,140.74,140.69,14.66363402]
[1745119390838,54.50101249,140.75,140.7,7.55601218]
[1745119396459,54.50101249,140.75,140.69,7.55601218]
[1745119397359,54.50101249,140.75,140.69,14.66369432]
[1745119399149,46.94500031,140.75,140.69,14.66369432]
[1745119399867,33.10500031,140.75,140.69,14.66369432]
[1745119400048,33.10500031,140.75,140.7,7.55601218]
[1745119400946,33.10500031,140.75,140.69,7.55601218]
[1745119401954,33.10500031,140.75,140.69,14.66361165]
[1745119402663,40.66101249,140.75,140.68,14.66424645]
[1745119403058,33.10500031,140.75,140.68,14.66424645]
[1745119403274,40.66101249,140.75,140.69,7.55601218]
[1745119403673,33.10500031,140.75,140.69,7.55601218]
[1745119404473,33.10500031,140.75,140.7,7.55601218]
[1745119407868,33.10500031,140.75,140.7,14.66316677]
[1745119408172,26.0,140.75,140.7,14.66316677]
[1745119408374,26.0,140.75,140.71,7.55601218]
[1745119411874,33.10481225,140.75,140.71,7.55601218]
[1745119412058,40.66082443,140.75,140.7,7.55601218]
[1745119412872,40.66082443,140.75,140.69,7.55601218]
[1745119414062,7.55601218,140.74,140.69,7.55601218]
[1745119414462,7.55601218,140.74,140.68,7.10811902]
[1745119414653,7.55601218,140.74,140.69,7.55601218]
[1745119414856,7.10580544,140.73,140.69,7.55601218]
[1745119416283,14.66080791,140.75,140.69,7.55601218]
[1745119418876,7.55601218,140.73,140.65,108.8847]
[1745119419078,9.20201218,140.73,140.67,7.55601218]
[1745119419581,9.20201218,140.73,140.65,27.5847]
[1745119419783,7.1063104,140.72,140.67,7.55601218]
[1745119420080,14.66232258,140.72,140.66,14.66534699]
[1745119420585,7.55601218,140.71,140.63,13.84]
[1745119420888,7.55601218,140.71,140.65,7.55601218]
[1745119421182,7.55601218,140.7,140.65,7.55601218]
[1745119421683,7.10782571,140.69,140.65,7.55601218]
[1745119421864,17.765776,140.72,140.62,27.5146]
[1745119421865,17.765776,140.72,140.66,7.55601218]
[1745119422066,7.55601218,140.71,140.66,7.55601218]
[1745119422686,7.10681543,140.71,140.66,7.55601218]
[1745119422888,7.55601218,140.71,140.66,7.55601218]
[1745119424886,7.10732054,140.7,140.66,7.55601218]
[1745119434082,7.10732054,140.7,140.59,6.109]
[1745119434083,7.69817375,140.67,140.59,6.109]
[1745119434283,0.14216157,140.64,140.59,7.55601218]
[1745119434681,0.14216157,140.64,140.58,1.52]
[1745119435081,0.14216157,140.64,140.6,7.55601218]
[1745119435390,0.14216157,140.63,140.59,7.55601218]
[1745119436298,0.14216157,140.63,140.58,1.52]
[1745119436597,0.14216157,140.63,140.6,7.55601218]
[1745119437517,7.55601218,140.65,140.6,7.55601218]
[1745119437518,0.14216157,140.64,140.6,7.55601218]
[1745119437893,0.14216157,140.64,140.61,7.55601218]
[1745119438216,0.14216157,140.64,140.62,7.55601218]
[1745119439715,0.14216157,140.66,140.62,7.55601218]
[1745119442310,0.14216157,140.66,140.63,7.55601218]
[1745119442610,0.14216157,140.68,140.64,7.55601218]
[1745119444719,0.14216157,140.68,140.64,14.66612807]
[1745119445013,96.24,140.71,140.64,7.11011589]
[1745119445203,21.39601218,140.71,140.66,7.55601218]
[1745119445404,0.14216157,140.7,140.66,7.55601218]
[1745119445592,47.39601218,140.71,140.66,7.55601218]
[1745119445790,13.84,140.71,140.66,7.55601218]
[1745119446205,0.14216157,140.7,140.66,7.55601218]
[1745119446515,0.14216157,140.7,140.67,7.55601218]
[1745119446914,0.14216157,140.7,140.68,14.66434314]
[1745119447100,13.84,140.71,140.68,14.66434314]
[1745119447306,0.14216157,140.72,140.68,14.66434314]
[1745119450620,7.69817375,140.72,140.67,7.10864094]
[1745119451722,14.80458525,140.72,140.67,7.10864094]
[1745119451910,7.69817375,140.72,140.67,7.10864094]
[1745119452109,0.14216157,140.7,140.67,7.10864094]
[1745119454325,0.14216157,140.71,140.67,7.55601218]
[1745119455629,0.14216157,140.71,140.67,14.66452108]
[1745119458115,0.14216157,140.72,140.68,7.55601218]
[1745119458927,0.14216157,140.72,140.69,7.55601218]
[1745119460325,0.14216157,140.72,140.69,14.6637867]
[1745119460625,7.69817375,140.72,140.67,14.66484846]
[1745119461734,0.14216157,140.72,140.69,7.55601218]
[1745119462833,0.14216157,140.72,140.69,14.66362051]
[1745119466733,0.03,140.74,140.71,7.55601218]
[1745119467237,0.03,140.74,140.71,14.66254033]
[1745119467530,7.58601218,140.74,140.69,7.55601218]
[1745119467938,0.14216157,140.73,140.69,7.55601218]
[1745119468639,0.14216157,140.73,140.68,7.10833096]
[1745119468937,0.14216157,140.73,140.69,7.55601218]
[1745119469535,0.14216157,140.73,140.69,14.66354881]
[1745119471637,7.58601218,140.74,140.7,7.55601218]
[1745119471638,0.17216157,140.74,140.7,7.55601218]
[1745119473539,0.17216157,140.74,140.7,14.66292423]
[1745119476340,0.17216157,140.74,140.71,7.55601218]
[1745119477944,0.17216157,140.74,140.71,14.66256156]
[1745119478439,0.17216157,140.74,140.72,7.55601218]
[1745119479644,0.03,140.74,140.73,7.55601218]
[1745119482153,0.03,140.74,140.72,7.55601218]
[1745119484441,0.03,140.74,140.72,14.66218161]
[1745119486350,0.03,140.74,140.71,7.55601218]
[1745119488455,0.03,140.74,140.72,7.55601218]
[1745119490127,0.03,140.74,140.72,14.66215172]
[1745119490331,0.03,140.74,140.73,7.55601218]
[1745119492255,0.03,140.74,140.73,14.66181762]
[1745119498557,0.03,140.74,140.73,7.10580544]
[1745119498754,0.03,140.74,140.73,14.66181762]
[1745119499061,0.03,140.74,140.72,33.10612792]
[1745119499761,0.03,140.74,140.71,14.66264587]
[1745119501860,0.03,140.74,140.72,7.55601218]
[1745119502657,0.03,140.74,140.73,7.55601218]
[1745119504077,0.03,140.74,140.73,14.66181762]
[1745119504771,0.03,140.74,140.73,7.10580544]
[1745119505955,0.03,140.74,140.71,7.55601218]
[1745119507660,0.03,140.74,140.71,14.66263219]
[1745119507864,0.03,140.74,140.72,7.55601218]
[1745119508254,0.03,140.74,140.73,7.55601218]
[1745119510281,0.03,140.74,140.73,14.66181762]
[1745119511673,0.03,140.74,140.73,7.55601218]
[1745119516284,0.03,140.74,140.72,14.66211705]
[1745119519077,0.03,140.74,140.71,14.66267613]
[1745119519670,0.03,140.74,140.72,7.55601218]
[1745119523884,0.03,140.74,140.71,7.55601218]
[1745119525183,0.03,140.74,140.72,7.55601218]
[1745119525586,0.03,140.74,140.7,33.10711373]
[1745119525780,0.03,140.74,140.72,7.55601218]
[1745119527687,0.03,140.74,140.73,7.55601218]
[1745119529590,0.03,140.74,140.73,14.66181762]
[1745119547205,0.03,140.74,140.71,7.55601218]
[1745119547389,0.03,140.74,140.7,33.55601218]
[1745119547709,0.03,140.74,140.7,7.55601218]
[1745119548113,0.03,140.74,140.71,7.55601218]
[1745119549711,0.03,140.74,140.71,14.66263342]
[1745119549913,0.03,140.74,140.72,7.55601218]
[1745119550811,18.64964886,140.71,140.62,7.55601218]
[1745119551017,0.14216157,140.67,140.62,7.55601218]
[1745119551198,0.14216157,140.66,140.63,7.55601218]
[1745119551521,0.14216157,140.66,140.64,7.55601218]
[1745119551804,0.14216157,140.66,140.61,33.11168394]
[1745119552005,0.14216157,140.66,140.65,7.55601218]
[1745119552214,0.14216157,140.66,140.61,33.11168394]
[1745119552416,0.14216157,140.66,140.63,7.55601218]
[1745119553093,0.14216157,140.66,140.64,7.55601218]
[1745119553290,0.14216157,140.67,140.64,7.55601218]
[1745119553504,0.14216157,140.67,140.66,7.55601218]
[1745119553702,0.14216157,140.67,140.65,7.55601218]
[1745119557203,7.25012151,140.69,140.65,7.55601218]
[1745119560315,7.25012151,140.69,140.66,7.55601218]
[1745119561520,0.14216157,140.69,140.66,7.55601218]
[1745119561718,7.10744475,140.7,140.68,7.55601218]
[1745119562023,0.14216157,140.69,140.67,7.55601218]
[1745119563420,7.24999264,140.69,140.66,7.55601218]
[1745119564203,7.24955438,140.7,140.66,7.55601218]
[1745119568008,7.24955438,140.7,140.65,7.55601218]
[1745119574134,7.24955438,140.7,140.66,7.55601218]
[1745119578436,14.80556656,140.7,140.65,7.55601218]
[1745119578638,0.14216157,140.68,140.63,14.66668087]
[1745119579539,0.14216157,140.68,140.64,7.55601218]
[1745119579837,7.25064824,140.68,140.64,7.55601218]
[1745119584542,14.80666042,140.68,140.62,88.41119302]
[1745119584730,14.80666042,140.68,140.63,7.55601218]
[1745119585039,0.14216157,140.66,140.6,7.11237553]
[1745119585237,7.25156176,140.66,140.62,7.55601218]
[1745119585642,14.80757394,140.66,140.61,7.55601218]
[1745119585837,14.80757394,140.66,140.6,14.66821813]
[1745119586020,0.14216157,140.64,140.6,14.66821813]
[1745119587639,7.69817375,140.64,140.58,7.11288482]
[1745119587819,23.26007375,140.64,140.58,14.668897]
[1745119588019,29.63717375,140.64,140.58,14.668897]
[1745119588543,29.63717375,140.64,140.58,7.11288482]
[1745119588741,36.74785747,140.64,140.58,14.668897]
[1745119588943,29.63717375,140.64,140.59,7.55601218]
[1745119589924,15.70406157,140.64,140.6,7.55601218]
[1745119590340,15.70406157,140.64,140.59,14.66868743]
[1745119591742,15.70406157,140.64,140.6,7.55601218]
[1745119592525,15.70406157,140.64,140.61,7.11186971]
[1745119593043,0.14216157,140.62,140.58,7.11338739]
[1745119593225,0.14216157,140.62,140.58,14.66939957]
[1745119596856,7.69817375,140.6,140.57,7.11379687]
[1745119597039,0.14216157,140.6,140.57,7.55601218]
[1745119597448,13.94,140.62,140.59,7.55601218]
[1745119597651,21.49601218,140.62,140.56,24.96333986]
[1745119597952,0.14216157,140.61,140.57,7.55601218]
[1745119598335,0.14216157,140.61,140.58,7.55601218]
[1745119598755,0.14216157,140.61,140.58,7.11338739]
[1745119599449,0.14216157,140.61,140.56,7.17725351]
[1745119599643,0.14216157,140.59,140.56,0.063]
[1745119600045,7.69817375,140.59,140.56,0.063]
[1745119600679,7.69817375,140.57,140.56,0.063]
[1745119600859,0.14216157,140.57,140.56,0.063]
[1745119602282,15.5919,140.61,140.56,7.61901218]
[1745119602777,0.14216157,140.6,140.57,7.11389343]
[1745119602960,15.5919,140.61,140.57,14.66990561]
[1745119603160,0.14216157,140.6,140.57,14.66990561]
[1745119604880,8.0208,140.65,140.59,7.55601218]
[1745119605057,8.0208,140.65,140.6,7.55601218]
[1745119605257,0.14216157,140.64,140.6,7.55601218]
[1745119605459,8.0208,140.65,140.62,7.55601218]
[1745119605658,14.12,140.66,140.62,7.55601218]
[1745119606165,0.14216157,140.65,140.62,7.55601218]
[1745119606484,14.12,140.66,140.63,7.55601218]
[1745119606983,0.14216157,140.65,140.63,14.66643804]
[1745119607984,14.12,140.66,140.63,14.66643804]
[1745119608190,0.14216157,140.65,140.63,14.66643804]
[1745119608661,0.14216157,140.65,140.64,7.55601218]
[1745119609988,0.14216157,140.65,140.63,14.66643804]
[1745119610963,0.14216157,140.67,140.63,14.66643804]
[1745119614285,7.69817375,140.67,140.63,7.11042586]